Workbook

Sheet All
B1: الاسم | C1: رقم الهوية | D1: رقم الجوال | E1: نوع السداد | F1: المديونية الاساسية | G1: خصم إلتزام السداد | H1: المديونية في حالة إلتزام السداد | I1: عدد الاقسام | J1: بداية السداد / تاريخ السداد | K1: القسط (1) | N1: القسط (2) | Q1: القسط (3) | T1: القسط (4) | W1: القسط (5) | Z1: القسط (6) | AC1: القسط (7) | AF1: القسط (8) | AI1: القسط (9) | AL1: القسط (10) | AO1: القسط (11) | AR1: القسط (12) | AU1: =F1 -> المديونية الاساسية | AV1: =G1 -> خصم إلتزام السداد | AW1: =H1 -> المديونية في حالة إلتزام السداد | AX1: المحصل | AY1: رصيد باقي المديونية بدون خصم | AZ1: رصيد باقي المديونية معمد الخصم | BA1: الملاحظات
K2: المبلغ | L2: رقم الايصال | M2: التاريخ | N2: المبلغ | O2: رقم الايصال | P2: التاريخ | Q2: المبلغ | R2: رقم الايصال | S2: التاريخ | T2: المبلغ | U2: رقم الايصال | V2: التاريخ | W2: المبلغ | X2: رقم الايصال | Y2: التاريخ | Z2: المبلغ | AA2: رقم الايصال | AB2: التاريخ | AC2: المبلغ | AD2: رقم الايصال | AE2: التاريخ | AF2: المبلغ | AG2: رقم الايصال | AH2: التاريخ | AI2: المبلغ | AJ2: رقم الايصال | AK2: التاريخ | AL2: المبلغ | AM2: رقم الايصال | AN2: التاريخ | AO2: المبلغ | AP2: رقم الايصال | AQ2: التاريخ | AR2: المبلغ | AS2: رقم الايصال | AT2: التاريخ
A3: 1 | B3: احمد السيد على ابراهيم | C3: C3 | D3: c5 | E3: تقسيط | F3: 130000 | G3: 30000 | H3: =F3-G3 -> 100000 | I3: 10 | J3: 2020-05-25 | K3: 2000 | L3: 15 | M3: 2020-06-01 | N3: 35 | O3: 20 | P3: 2020-06-05 | Q3: A1 | R3: A2 | S3: 2020-06-11 | T3: A4 | U3: A5 | V3: A6 | W3: A7 | X3: A8 | Y3: A9 | Z3: A10 | AA3: A11 | AB3: A12 | AC3: A13 | AD3: A14 | AE3: A15 | AF3: A16 | AG3: A17 | AH3: A18 | AI3: A19 | AJ3: A20 | AK3: A21 | AL3: A22 | AM3: A23 | AN3: A24 | AO3: A25 | AP3: A26 | AQ3: A27 | AR3: A28 | AS3: A29 | AT3: A30 | AU3: =F3 -> 130000 | AV3: =G3 -> 30000 | AW3: =H3 -> 100000 | AX3: =SUM(K3,N3,Q3,T3,W3,Z3,AF3,AC3,AI3,AL3,AO3,AR3) -> 2035 | AY3: =F3-AX3 -> 127965 | AZ3: =H3-AX3 -> 97965
A4: 2 | B4: سمير فاروق ابراهيم على | C4: C4 | D4: c6 | E4: تقسيط | F4: 70000 | G4: 13000 | H4: =F4-G4 -> 57000 | I4: 9 | J4: 2020-05-30 | K4: 15000 | L4: 44 | M4: 2020-06-02 | AU4: 70000 | AV4: 13000 | AW4: 57000 | AX4: =SUM(K4+N4+Q4+T4+W4+Z4+AF4+AC4+AI4+AL4+AO4+AR4) -> 15000 | AY4: =F4-AX4 -> 55000 | AZ4: 42000
A5: 3 | B5: اسماء احمد حاتم جودة | C5: C5 | D5: c7 | E5: تقسيط | F5: 12000 | G5: 0 | H5: =F5-G5 -> 12000 | I5: 8 | J5: 2020-03-16 | K5: 3500 | L5: 34 | M5: 2020-06-03 | AU5: 12000 | AV5: 0 | AW5: 12000 | AX5: 3500 | AY5: 8500 | AZ5: 8500
A6: 4 | B6: حسنى على ابراهيم | C6: C6 | D6: c8 | E6: آجل | F6: 80000 | G6: 12 | H6: 79988 | J6: 2020-04-16 | K6: 2200 | L6: 65 | M6: 2020-06-04 | AU6: 80000 | AV6: 12 | AW6: 79988 | AX6: =SUM(K6+N6+Q6+T6+W6+Z6+AF6+AC6+AI6+AL6+AO6+AR6) -> 2200 | AY6: =F6-AX6 -> 77800 | AZ6: =H6-AX6 -> 77788
A7: 5 | B7: b1 | C7: C7 | D7: c9 | E7: آجل | F7: =F6/1000 -> 80 | G7: =G6/1000 -> 0.012 | H7: 79.988 | I7: =I6/1000 -> 0 | J7: =J6/1000 -> 43.937 | K7: =K6/1000 -> 2.2 | L7: =L6/1000 -> 0.065 | M7: =M6/1000 -> 43.986 | N7: =N6/1000 -> 0 | O7: =O6/1000 -> 0 | P7: =P6/1000 -> 0 | Q7: =Q6/1000 -> 0 | R7: =R6/1000 -> 0 | S7: =S6/1000 -> 0 | T7: =T6/1000 -> 0 | U7: =U6/1000 -> 0 | V7: =V6/1000 -> 0 | W7: =W6/1000 -> 0 | X7: =X6/1000 -> 0 | Y7: =Y6/1000 -> 0 | Z7: =Z6/1000 -> 0 | AA7: =AA6/1000 -> 0 | AB7: =AB6/1000 -> 0 | AC7: =AC6/1000 -> 0 | AD7: =AD6/1000 -> 0 | AE7: =AE6/1000 -> 0 | AF7: =AF6/1000 -> 0 | AG7: =AG6/1000 -> 0 | AH7: =AH6/1000 -> 0 | AI7: =AI6/1000 -> 0 | AJ7: =AJ6/1000 -> 0 | AK7: =AK6/1000 -> 0 | AL7: =AL6/1000 -> 0 | AM7: =AM6/1000 -> 0 | AN7: =AN6/1000 -> 0 | AO7: =AO6/1000 -> 0 | AP7: =AP6/1000 -> 0 | AQ7: =AQ6/1000 -> 0 | AR7: =AR6/1000 -> 0 | AS7: =AS6/1000 -> 0 | AT7: =AT6/1000 -> 0 | AU7: 80 | AV7: 0.012 | AW7: 79.988 | AX7: 2.2 | AY7: 77.8 | AZ7: 77.788
A8: 6 | E8: c8 | F8: c9 | G8: c10 | H8: c11 | I8: c12 | J8: c13 | AU8: c9 | AV8: c10 | AW8: c11 | AX8: 0
A9: 7 | AU9: 0 | AV9: 0 | AW9: 0 | AX9: =SUM(K9+N9+Q9+T9+W9+Z9+AF9+AC9+AI9+AL9+AO9+AR9) -> 0 | AY9: =F9-AX9 -> 0 | AZ9: =H9-AX9 -> 0
A10: 8 | K10: =COLUMN()-3 -> 8 | L10: =COLUMN()-3 -> 9 | M10: 10 | N10: 11 | AU10: 0 | AV10: 0 | AW10: 0 | AX10: 19 | AY10: -19 | AZ10: -19
A11: 9 | AU11: 0 | AV11: 0 | AW11: 0 | AX11: 0 | AY11: 0 | AZ11: 0
A12: 10 | AU12: 0 | AV12: 0 | AW12: 0 | AX12: 0 | AY12: 0 | AZ12: 0
A13: 11 | AU13: 0 | AV13: 0 | AW13: 0 | AX13: 0 | AY13: 0 | AZ13: 0
A14: 12 | AU14: 0 | AV14: 0 | AW14: 0 | AX14: 0 | AY14: 0 | AZ14: 0
A15: 13 | AU15: 0 | AV15: 0 | AW15: 0 | AX15: 0 | AY15: 0 | AZ15: 0
A16: 14 | AU16: 0 | AV16: 0 | AW16: 0 | AX16: 0 | AY16: 0 | AZ16: 0
A17: 15 | AU17: 0 | AV17: 0 | AW17: 0 | AX17: 0 | AY17: 0 | AZ17: 0
A18: 16 | AU18: 0 | AV18: 0 | AW18: 0 | AX18: 0 | AY18: 0 | AZ18: 0
A19: 17 | AU19: 0 | AV19: 0 | AW19: 0 | AX19: 0 | AY19: 0 | AZ19: 0
A20: 18 | AU20: 0 | AV20: 0 | AW20: 0 | AX20: 0 | AY20: 0 | AZ20: 0
A21: 19 | AU21: 0 | AV21: 0 | AW21: 0 | AX21: 0 | AY21: 0 | AZ21: 0
A22: 20 | AU22: 0 | AV22: 0 | AW22: 0 | AX22: 0 | AY22: 0 | AZ22: 0
A23: 21 | AU23: 0 | AV23: 0 | AW23: 0 | AX23: 0 | AY23: 0 | AZ23: 0
A24: 22 | AU24: 0 | AV24: 0 | AW24: 0 | AX24: 0 | AY24: 0 | AZ24: 0
A25: 23 | AU25: 0 | AV25: 0 | AW25: 0 | AX25: 0 | AY25: 0 | AZ25: 0
A26: 24 | AU26: 0 | AV26: 0 | AW26: 0 | AX26: 0 | AY26: 0 | AZ26: 0
A27: 25 | AU27: 0 | AV27: 0 | AW27: 0 | AX27: 0 | AY27: 0 | AZ27: 0
A28: 26 | AU28: 0 | AV28: 0 | AW28: 0 | AX28: 0 | AY28: 0 | AZ28: 0
A29: 27 | AU29: 0 | AV29: 0 | AW29: 0 | AX29: 0 | AY29: 0 | AZ29: 0
A30: 28 | AU30: 0 | AV30: 0 | AW30: 0 | AX30: 0 | AY30: 0 | AZ30: 0
A31: 29 | AU31: 0 | AV31: 0 | AW31: 0 | AX31: 0 | AY31: 0 | AZ31: 0
A32: 30 | AU32: 0 | AV32: 0 | AW32: 0 | AX32: 0 | AY32: 0 | AZ32: 0
A33: 31 | AU33: 0 | AV33: 0 | AW33: 0 | AX33: 0 | AY33: 0 | AZ33: 0
A34: 32 | AU34: 0 | AV34: 0 | AW34: 0 | AX34: 0 | AY34: 0 | AZ34: 0
A35: 33 | AU35: 0 | AV35: 0 | AW35: 0 | AX35: 0 | AY35: 0 | AZ35: 0
A36: 34 | AU36: 0 | AV36: 0 | AW36: 0 | AX36: 0 | AY36: 0 | AZ36: 0
A37: 35 | AU37: 0 | AV37: 0 | AW37: 0 | AX37: 0 | AY37: 0 | AZ37: 0
A38: 36 | AU38: 0 | AV38: 0 | AW38: 0 | AX38: 0 | AY38: 0 | AZ38: 0
A39: 37 | AU39: 0 | AV39: 0 | AW39: 0 | AX39: 0 | AY39: 0 | AZ39: 0
A40: 38 | AU40: 0 | AV40: 0 | AW40: 0 | AX40: 0 | AY40: 0 | AZ40: 0
A41: 39 | AU41: 0 | AV41: 0 | AW41: 0 | AX41: 0 | AY41: 0 | AZ41: 0
A42: 40 | AU42: 0 | AV42: 0 | AW42: 0 | AX42: 0 | AY42: 0 | AZ42: 0
A43: 41 | AU43: 0 | AV43: 0 | AW43: 0 | AX43: 0 | AY43: 0 | AZ43: 0
A44: 42 | AU44: 0 | AV44: 0 | AW44: 0 | AX44: 0 | AY44: 0 | AZ44: 0
A45: 43 | AU45: 0 | AV45: 0 | AW45: 0 | AX45: 0 | AY45: 0 | AZ45: 0
A46: 44 | AU46: 0 | AV46: 0 | AW46: 0 | AX46: 0 | AY46: 0 | AZ46: 0
A47: 45 | AU47: 0 | AV47: 0 | AW47: 0 | AX47: 0 | AY47: 0 | AZ47: 0
A48: 46 | AU48: 0 | AV48: 0 | AW48: 0 | AX48: 0 | AY48: 0 | AZ48: 0
A49: 47 | AU49: 0 | AV49: 0 | AW49: 0 | AX49: 0 | AY49: 0 | AZ49: 0
A50: 48 | AU50: 0 | AV50: 0 | AW50: 0 | AX50: 0 | AY50: 0 | AZ50: 0
A51: 49 | AU51: 0 | AV51: 0 | AW51: 0 | AX51: 0 | AY51: 0 | AZ51: 0
A52: 50 | AU52: 0 | AV52: 0 | AW52: 0 | AX52: 0 | AY52: 0 | AZ52: 0
A53: 51 | AU53: 0 | AV53: 0 | AW53: 0 | AX53: 0 | AY53: 0 | AZ53: 0
A54: 52 | AU54: 0 | AV54: 0 | AW54: 0 | AX54: 0 | AY54: 0 | AZ54: 0
A55: 53 | AU55: 0 | AV55: 0 | AW55: 0 | AX55: 0 | AY55: 0 | AZ55: 0
A56: 54 | AU56: 0 | AV56: 0 | AW56: 0 | AX56: 0 | AY56: 0 | AZ56: 0
A57: 55 | AU57: 0 | AV57: 0 | AW57: 0 | AX57: 0 | AY57: 0 | AZ57: 0
A58: 56 | AU58: 0 | AV58: 0 | AW58: 0 | AX58: 0 | AY58: 0 | AZ58: 0
A59: 57 | AU59: 0 | AV59: 0 | AW59: 0 | AX59: 0 | AY59: 0 | AZ59: 0
A60: 58 | AU60: 0 | AV60: 0 | AW60: 0 | AX60: 0 | AY60: 0 | AZ60: 0
A61: 59 | AU61: 0 | AV61: 0 | AW61: 0 | AX61: 0 | AY61: 0 | AZ61: 0
A62: 60 | AU62: 0 | AV62: 0 | AW62: 0 | AX62: 0 | AY62: 0 | AZ62: 0
A63: 61 | AU63: 0 | AV63: 0 | AW63: 0 | AX63: 0 | AY63: 0 | AZ63: 0
A64: 62 | AU64: 0 | AV64: 0 | AW64: 0 | AX64: 0 | AY64: 0 | AZ64: 0
A65: 63 | AU65: 0 | AV65: 0 | AW65: 0 | AX65: 0 | AY65: 0 | AZ65: 0
A66: 64 | AU66: 0 | AV66: 0 | AW66: 0 | AX66: 0 | AY66: 0 | AZ66: 0
A67: 65 | AU67: =F67 -> 0 | AV67: =G67 -> 0 | AW67: =H67 -> 0 | AX67: 0 | AY67: 0 | AZ67: 0
A68: 66 | AU68: 0 | AV68: 0 | AW68: 0 | AX68: 0 | AY68: 0 | AZ68: 0
A69: 67 | AU69: 0 | AV69: 0 | AW69: 0 | AX69: 0 | AY69: 0 | AZ69: 0
A70: 68 | AU70: 0 | AV70: 0 | AW70: 0 | AX70: 0 | AY70: 0 | AZ70: 0
A71: 69 | AU71: 0 | AV71: 0 | AW71: 0 | AX71: 0 | AY71: 0 | AZ71: 0
A72: 70 | AU72: 0 | AV72: 0 | AW72: 0 | AX72: 0 | AY72: 0 | AZ72: 0
A73: 71 | AU73: 0 | AV73: 0 | AW73: 0 | AX73: =SUM(K73+N73+Q73+T73+W73+Z73+AF73+AC73+AI73+AL73+AO73+AR73) -> 0 | AY73: =F73-AX73 -> 0 | AZ73: =H73-AX73 -> 0
A74: 72 | AU74: 0 | AV74: 0 | AW74: 0 | AX74: 0 | AY74: 0 | AZ74: 0
A75: 73 | AU75: 0 | AV75: 0 | AW75: 0 | AX75: 0 | AY75: 0 | AZ75: 0
A76: 74 | AU76: 0 | AV76: 0 | AW76: 0 | AX76: 0 | AY76: 0 | AZ76: 0
A77: 75 | AU77: 0 | AV77: 0 | AW77: 0 | AX77: 0 | AY77: 0 | AZ77: 0
A78: 76 | AU78: 0 | AV78: 0 | AW78: 0 | AX78: 0 | AY78: 0 | AZ78: 0
A79: 77 | AU79: 0 | AV79: 0 | AW79: 0 | AX79: 0 | AY79: 0 | AZ79: 0
A80: 78 | AU80: 0 | AV80: 0 | AW80: 0 | AX80: 0 | AY80: 0 | AZ80: 0
A81: 79 | AU81: 0 | AV81: 0 | AW81: 0 | AX81: 0 | AY81: 0 | AZ81: 0
A82: 80 | AU82: 0 | AV82: 0 | AW82: 0 | AX82: 0 | AY82: 0 | AZ82: 0
A83: 81 | AU83: 0 | AV83: 0 | AW83: 0 | AX83: 0 | AY83: 0 | AZ83: 0
A84: 82 | AU84: 0 | AV84: 0 | AW84: 0 | AX84: 0 | AY84: 0 | AZ84: 0
A85: 83 | AU85: 0 | AV85: 0 | AW85: 0 | AX85: 0 | AY85: 0 | AZ85: 0
A86: 84 | AU86: 0 | AV86: 0 | AW86: 0 | AX86: 0 | AY86: 0 | AZ86: 0
A87: 85 | AU87: 0 | AV87: 0 | AW87: 0 | AX87: 0 | AY87: 0 | AZ87: 0
A88: 86 | AU88: 0 | AV88: 0 | AW88: 0 | AX88: 0 | AY88: 0 | AZ88: 0
A89: 87 | AU89: 0 | AV89: 0 | AW89: 0 | AX89: 0 | AY89: 0 | AZ89: 0
A90: 88 | AU90: 0 | AV90: 0 | AW90: 0 | AX90: 0 | AY90: 0 | AZ90: 0
A91: 89 | AU91: 0 | AV91: 0 | AW91: 0 | AX91: 0 | AY91: 0 | AZ91: 0
A92: 90 | AU92: 0 | AV92: 0 | AW92: 0 | AX92: 0 | AY92: 0 | AZ92: 0
A93: 91 | AU93: 0 | AV93: 0 | AW93: 0 | AX93: 0 | AY93: 0 | AZ93: 0
A94: 92 | AU94: 0 | AV94: 0 | AW94: 0 | AX94: 0 | AY94: 0 | AZ94: 0
A95: 93 | AU95: 0 | AV95: 0 | AW95: 0 | AX95: 0 | AY95: 0 | AZ95: 0
A96: 94 | AU96: 0 | AV96: 0 | AW96: 0 | AX96: 0 | AY96: 0 | AZ96: 0
A97: 95 | AU97: 0 | AV97: 0 | AW97: 0 | AX97: 0 | AY97: 0 | AZ97: 0
A98: 96 | AU98: 0 | AV98: 0 | AW98: 0 | AX98: 0 | AY98: 0 | AZ98: 0
A99: 97 | AU99: 0 | AV99: 0 | AW99: 0 | AX99: 0 | AY99: 0 | AZ99: 0
A100: 98 | AU100: 0 | AV100: 0 | AW100: 0 | AX100: 0 | AY100: 0 | AZ100: 0
A101: 99 | AU101: 0 | AV101: 0 | AW101: 0 | AX101: 0 | AY101: 0 | AZ101: 0
A102: 100 | AU102: 0 | AV102: 0 | AW102: 0 | AX102: 0 | AY102: 0 | AZ102: 0
A103: 101 | AU103: 0 | AV103: 0 | AW103: 0 | AX103: 0 | AY103: 0 | AZ103: 0
A104: 102 | AU104: 0 | AV104: 0 | AW104: 0 | AX104: 0 | AY104: 0 | AZ104: 0
A105: 103 | AU105: 0 | AV105: 0 | AW105: 0 | AX105: 0 | AY105: 0 | AZ105: 0
A106: 104 | AU106: 0 | AV106: 0 | AW106: 0 | AX106: 0 | AY106: 0 | AZ106: 0
A107: 105 | AU107: 0 | AV107: 0 | AW107: 0 | AX107: 0 | AY107: 0 | AZ107: 0
A108: 106 | AU108: 0 | AV108: 0 | AW108: 0 | AX108: 0 | AY108: 0 | AZ108: 0
A109: 107 | AU109: 0 | AV109: 0 | AW109: 0 | AX109: 0 | AY109: 0 | AZ109: 0
A110: 108 | AU110: 0 | AV110: 0 | AW110: 0 | AX110: 0 | AY110: 0 | AZ110: 0
A111: 109 | AU111: 0 | AV111: 0 | AW111: 0 | AX111: 0 | AY111: 0 | AZ111: 0
A112: 110 | AU112: 0 | AV112: 0 | AW112: 0 | AX112: 0 | AY112: 0 | AZ112: 0
A113: 111 | AU113: 0 | AV113: 0 | AW113: 0 | AX113: 0 | AY113: 0 | AZ113: 0
A114: 112 | AU114: 0 | AV114: 0 | AW114: 0 | AX114: 0 | AY114: 0 | AZ114: 0
A115: 113 | AU115: 0 | AV115: 0 | AW115: 0 | AX115: 0 | AY115: 0 | AZ115: 0
A116: 114 | AU116: 0 | AV116: 0 | AW116: 0 | AX116: 0 | AY116: 0 | AZ116: 0
A117: 115 | AU117: 0 | AV117: 0 | AW117: 0 | AX117: 0 | AY117: 0 | AZ117: 0
A118: 116 | AU118: 0 | AV118: 0 | AW118: 0 | AX118: 0 | AY118: 0 | AZ118: 0
A119: 117 | AU119: 0 | AV119: 0 | AW119: 0 | AX119: 0 | AY119: 0 | AZ119: 0
A120: 118 | AU120: 0 | AV120: 0 | AW120: 0 | AX120: 0 | AY120: 0 | AZ120: 0
A121: 119 | AU121: 0 | AV121: 0 | AW121: 0 | AX121: 0 | AY121: 0 | AZ121: 0
A122: 120 | AU122: 0 | AV122: 0 | AW122: 0 | AX122: 0 | AY122: 0 | AZ122: 0
A123: 121 | AU123: 0 | AV123: 0 | AW123: 0 | AX123: 0 | AY123: 0 | AZ123: 0
A124: 122 | AU124: 0 | AV124: 0 | AW124: 0 | AX124: 0 | AY124: 0 | AZ124: 0
A125: 123 | AU125: 0 | AV125: 0 | AW125: 0 | AX125: 0 | AY125: 0 | AZ125: 0
A126: 124 | AU126: 0 | AV126: 0 | AW126: 0 | AX126: 0 | AY126: 0 | AZ126: 0
A127: 125 | AU127: 0 | AV127: 0 | AW127: 0 | AX127: 0 | AY127: 0 | AZ127: 0
A128: 126 | AU128: 0 | AV128: 0 | AW128: 0 | AX128: 0 | AY128: 0 | AZ128: 0
A129: 127 | AU129: 0 | AV129: 0 | AW129: 0 | AX129: 0 | AY129: 0 | AZ129: 0
A130: 128 | AU130: 0 | AV130: 0 | AW130: 0 | AX130: 0 | AY130: 0 | AZ130: 0
A131: 129 | AU131: =F131 -> 0 | AV131: =G131 -> 0 | AW131: =H131 -> 0 | AX131: 0 | AY131: 0 | AZ131: 0
A132: 130 | AU132: 0 | AV132: 0 | AW132: 0 | AX132: 0 | AY132: 0 | AZ132: 0
A133: 131 | AU133: 0 | AV133: 0 | AW133: 0 | AX133: 0 | AY133: 0 | AZ133: 0
A134: 132 | AU134: 0 | AV134: 0 | AW134: 0 | AX134: 0 | AY134: 0 | AZ134: 0
A135: 133 | AU135: 0 | AV135: 0 | AW135: 0 | AX135: 0 | AY135: 0 | AZ135: 0
A136: 134 | AU136: 0 | AV136: 0 | AW136: 0 | AX136: 0 | AY136: 0 | AZ136: 0
A137: 135 | AU137: 0 | AV137: 0 | AW137: 0 | AX137: =SUM(K137+N137+Q137+T137+W137+Z137+AF137+AC137+AI137+AL137+AO137+AR137) -> 0 | AY137: =F137-AX137 -> 0 | AZ137: =H137-AX137 -> 0
A138: 136 | AU138: 0 | AV138: 0 | AW138: 0 | AX138: 0 | AY138: 0 | AZ138: 0
A139: 137 | AU139: 0 | AV139: 0 | AW139: 0 | AX139: 0 | AY139: 0 | AZ139: 0
A140: 138 | AU140: 0 | AV140: 0 | AW140: 0 | AX140: 0 | AY140: 0 | AZ140: 0
A141: 139 | AU141: 0 | AV141: 0 | AW141: 0 | AX141: 0 | AY141: 0 | AZ141: 0
A142: 140 | AU142: 0 | AV142: 0 | AW142: 0 | AX142: 0 | AY142: 0 | AZ142: 0
A143: 141 | AU143: 0 | AV143: 0 | AW143: 0 | AX143: 0 | AY143: 0 | AZ143: 0
A144: 142 | AU144: 0 | AV144: 0 | AW144: 0 | AX144: 0 | AY144: 0 | AZ144: 0
A145: 143 | AU145: 0 | AV145: 0 | AW145: 0 | AX145: 0 | AY145: 0 | AZ145: 0
A146: 144 | AU146: 0 | AV146: 0 | AW146: 0 | AX146: 0 | AY146: 0 | AZ146: 0
A147: 145 | AU147: 0 | AV147: 0 | AW147: 0 | AX147: 0 | AY147: 0 | AZ147: 0
A148: 146 | AU148: 0 | AV148: 0 | AW148: 0 | AX148: 0 | AY148: 0 | AZ148: 0
A149: 147 | AU149: 0 | AV149: 0 | AW149: 0 | AX149: 0 | AY149: 0 | AZ149: 0
A150: 148 | AU150: 0 | AV150: 0 | AW150: 0 | AX150: 0 | AY150: 0 | AZ150: 0
A151: 149 | AU151: 0 | AV151: 0 | AW151: 0 | AX151: 0 | AY151: 0 | AZ151: 0
A152: 150 | AU152: 0 | AV152: 0 | AW152: 0 | AX152: 0 | AY152: 0 | AZ152: 0
A153: 151 | AU153: 0 | AV153: 0 | AW153: 0 | AX153: 0 | AY153: 0 | AZ153: 0
A154: 152 | AU154: 0 | AV154: 0 | AW154: 0 | AX154: 0 | AY154: 0 | AZ154: 0
A155: 153 | AU155: 0 | AV155: 0 | AW155: 0 | AX155: 0 | AY155: 0 | AZ155: 0
A156: 154 | AU156: 0 | AV156: 0 | AW156: 0 | AX156: 0 | AY156: 0 | AZ156: 0
A157: 155 | AU157: 0 | AV157: 0 | AW157: 0 | AX157: 0 | AY157: 0 | AZ157: 0
A158: 156 | AU158: 0 | AV158: 0 | AW158: 0 | AX158: 0 | AY158: 0 | AZ158: 0
A159: 157 | AU159: 0 | AV159: 0 | AW159: 0 | AX159: 0 | AY159: 0 | AZ159: 0
A160: 158 | AU160: 0 | AV160: 0 | AW160: 0 | AX160: 0 | AY160: 0 | AZ160: 0
A161: 159 | AU161: 0 | AV161: 0 | AW161: 0 | AX161: 0 | AY161: 0 | AZ161: 0
A162: 160 | AU162: 0 | AV162: 0 | AW162: 0 | AX162: 0 | AY162: 0 | AZ162: 0
A163: 161 | AU163: 0 | AV163: 0 | AW163: 0 | AX163: 0 | AY163: 0 | AZ163: 0
A164: 162 | AU164: 0 | AV164: 0 | AW164: 0 | AX164: 0 | AY164: 0 | AZ164: 0
A165: 163 | AU165: 0 | AV165: 0 | AW165: 0 | AX165: 0 | AY165: 0 | AZ165: 0
A166: 164 | AU166: 0 | AV166: 0 | AW166: 0 | AX166: 0 | AY166: 0 | AZ166: 0
A167: 165 | AU167: 0 | AV167: 0 | AW167: 0 | AX167: 0 | AY167: 0 | AZ167: 0
A168: 166 | AU168: 0 | AV168: 0 | AW168: 0 | AX168: 0 | AY168: 0 | AZ168: 0
A169: 167 | AU169: 0 | AV169: 0 | AW169: 0 | AX169: 0 | AY169: 0 | AZ169: 0
A170: 168 | AU170: 0 | AV170: 0 | AW170: 0 | AX170: 0 | AY170: 0 | AZ170: 0
A171: 169 | AU171: 0 | AV171: 0 | AW171: 0 | AX171: 0 | AY171: 0 | AZ171: 0
A172: 170 | AU172: 0 | AV172: 0 | AW172: 0 | AX172: 0 | AY172: 0 | AZ172: 0
A173: 171 | AU173: 0 | AV173: 0 | AW173: 0 | AX173: 0 | AY173: 0 | AZ173: 0
A174: 172 | AU174: 0 | AV174: 0 | AW174: 0 | AX174: 0 | AY174: 0 | AZ174: 0
A175: 173 | AU175: 0 | AV175: 0 | AW175: 0 | AX175: 0 | AY175: 0 | AZ175: 0
A176: 174 | AU176: 0 | AV176: 0 | AW176: 0 | AX176: 0 | AY176: 0 | AZ176: 0
A177: 175 | AU177: 0 | AV177: 0 | AW177: 0 | AX177: 0 | AY177: 0 | AZ177: 0
A178: 176 | AU178: 0 | AV178: 0 | AW178: 0 | AX178: 0 | AY178: 0 | AZ178: 0
A179: 177 | AU179: 0 | AV179: 0 | AW179: 0 | AX179: 0 | AY179: 0 | AZ179: 0
A180: 178 | AU180: 0 | AV180: 0 | AW180: 0 | AX180: 0 | AY180: 0 | AZ180: 0
A181: 179 | AU181: 0 | AV181: 0 | AW181: 0 | AX181: 0 | AY181: 0 | AZ181: 0
A182: 180 | AU182: 0 | AV182: 0 | AW182: 0 | AX182: 0 | AY182: 0 | AZ182: 0
A183: 181 | AU183: 0 | AV183: 0 | AW183: 0 | AX183: 0 | AY183: 0 | AZ183: 0
A184: 182 | AU184: 0 | AV184: 0 | AW184: 0 | AX184: 0 | AY184: 0 | AZ184: 0
A185: 183 | AU185: 0 | AV185: 0 | AW185: 0 | AX185: 0 | AY185: 0 | AZ185: 0
A186: 184 | AU186: 0 | AV186: 0 | AW186: 0 | AX186: 0 | AY186: 0 | AZ186: 0
A187: 185 | AU187: 0 | AV187: 0 | AW187: 0 | AX187: 0 | AY187: 0 | AZ187: 0
A188: 186 | AU188: 0 | AV188: 0 | AW188: 0 | AX188: 0 | AY188: 0 | AZ188: 0
A189: 187 | AU189: 0 | AV189: 0 | AW189: 0 | AX189: 0 | AY189: 0 | AZ189: 0
A190: 188 | AU190: 0 | AV190: 0 | AW190: 0 | AX190: 0 | AY190: 0 | AZ190: 0
A191: 189 | AU191: 0 | AV191: 0 | AW191: 0 | AX191: 0 | AY191: 0 | AZ191: 0
A192: 190 | AU192: 0 | AV192: 0 | AW192: 0 | AX192: 0 | AY192: 0 | AZ192: 0
A193: 191 | AU193: 0 | AV193: 0 | AW193: 0 | AX193: 0 | AY193: 0 | AZ193: 0
A194: 192 | AU194: 0 | AV194: 0 | AW194: 0 | AX194: 0 | AY194: 0 | AZ194: 0
A195: 193 | AU195: =F195 -> 0 | AV195: =G195 -> 0 | AW195: =H195 -> 0 | AX195: 0 | AY195: 0 | AZ195: 0
A196: 194 | AU196: 0 | AV196: 0 | AW196: 0 | AX196: 0 | AY196: 0 | AZ196: 0
A197: 195 | AU197: 0 | AV197: 0 | AW197: 0 | AX197: 0 | AY197: 0 | AZ197: 0
A198: 196 | AU198: 0 | AV198: 0 | AW198: 0 | AX198: 0 | AY198: 0 | AZ198: 0
A199: 197 | AU199: 0 | AV199: 0 | AW199: 0 | AX199: 0 | AY199: 0 | AZ199: 0
A200: 198 | AU200: 0 | AV200: 0 | AW200: 0 | AX200: 0 | AY200: 0 | AZ200: 0
... 2 more rows

Sheet One
B3: الاسم | C3: احمد السيد على ابراهيم | F3: الاقساط
B4: رقم الهوية | C4: =OFFSET(INDEX(All!$C$3:$C$100,MATCH($C$3,All!$B$3:$B$100,0)),,0) -> C3 | E4: م | F4: المبلغ | G4: رقم الايصال | H4: التاريخ
B5: رقم الجوال | C5: =OFFSET(INDEX(All!$C$3:$C$100,MATCH($C$3,All!$B$3:$B$100,0)),,1) -> c5 | E5: 1 | F5: =OFFSET(INDEX(All!$C$3:$C$100,MATCH($C$3,All!$B$3:$B$100,0)),,COLUMNS($A$1:A1)+7+(ROWS($A$1:A1)-1)*3) -> 2000 | G5: =OFFSET(INDEX(All!$C$3:$C$100,MATCH($C$3,All!$B$3:$B$100,0)),,COLUMNS($A$1:B1)+7+(ROWS($A$1:B1)-1)*3) -> 15 | H5: =IF(OFFSET(INDEX(All!$C$3:$C$100,MATCH($C$3,All!$B$3:$B$100,0)),,COLUMNS($A$1:C1)+7+(ROWS($A$1:C1)-1)*3)=0,"",OFFSET(INDEX(All!$C$3:$C$100,MATCH($C$3,All!$B$3:$B$100,0)),,COLUMNS($A$1:C1)+7+(ROWS($A$1:C1)-1)*3)) -> 2020-06-01
E6: 2 | F6: =OFFSET(INDEX(All!$C$3:$C$100,MATCH($C$3,All!$B$3:$B$100,0)),,COLUMNS($A$1:A2)+7+(ROWS($A$1:A2)-1)*3) -> 35 | G6: =OFFSET(INDEX(All!$C$3:$C$100,MATCH($C$3,All!$B$3:$B$100,0)),,COLUMNS($A$1:B2)+7+(ROWS($A$1:B2)-1)*3) -> 20 | H6: =IF(OFFSET(INDEX(All!$C$3:$C$100,MATCH($C$3,All!$B$3:$B$100,0)),,COLUMNS($A$1:C2)+7+(ROWS($A$1:C2)-1)*3)=0,"",OFFSET(INDEX(All!$C$3:$C$100,MATCH($C$3,All!$B$3:$B$100,0)),,COLUMNS($A$1:C2)+7+(ROWS($A$1:C2)-1)*3)) -> 2020-06-05
E7: 3 | F7: =OFFSET(INDEX(All!$C$3:$C$100,MATCH($C$3,All!$B$3:$B$100,0)),,COLUMNS($A$1:A3)+7+(ROWS($A$1:A3)-1)*3) -> A1 | G7: =OFFSET(INDEX(All!$C$3:$C$100,MATCH($C$3,All!$B$3:$B$100,0)),,COLUMNS($A$1:B3)+7+(ROWS($A$1:B3)-1)*3) -> A2 | H7: =IF(OFFSET(INDEX(All!$C$3:$C$100,MATCH($C$3,All!$B$3:$B$100,0)),,COLUMNS($A$1:C3)+7+(ROWS($A$1:C3)-1)*3)=0,"",OFFSET(INDEX(All!$C$3:$C$100,MATCH($C$3,All!$B$3:$B$100,0)),,COLUMNS($A$1:C3)+7+(ROWS($A$1:C3)-1)*3)) -> 2020-06-11
B8: نوع السداد | C8: =OFFSET(INDEX(All!$C$3:$C$100,MATCH($C$3,All!$B$3:$B$100,0)),,ROWS($A$1:A2)) -> تقسيط | E8: 4 | F8: =OFFSET(INDEX(All!$C$3:$C$100,MATCH($C$3,All!$B$3:$B$100,0)),,COLUMNS($A$1:A4)+7+(ROWS($A$1:A4)-1)*3) -> A4 | G8: =OFFSET(INDEX(All!$C$3:$C$100,MATCH($C$3,All!$B$3:$B$100,0)),,COLUMNS($A$1:B4)+7+(ROWS($A$1:B4)-1)*3) -> A5 | H8: =IF(OFFSET(INDEX(All!$C$3:$C$100,MATCH($C$3,All!$B$3:$B$100,0)),,COLUMNS($A$1:C4)+7+(ROWS($A$1:C4)-1)*3)=0,"",OFFSET(INDEX(All!$C$3:$C$100,MATCH($C$3,All!$B$3:$B$100,0)),,COLUMNS($A$1:C4)+7+(ROWS($A$1:C4)-1)*3)) -> A6
B9: المديونية الاساسية | C9: =OFFSET(INDEX(All!$C$3:$C$100,MATCH($C$3,All!$B$3:$B$100,0)),,ROWS($A$1:A3)) -> 130000 | E9: 5 | F9: =OFFSET(INDEX(All!$C$3:$C$100,MATCH($C$3,All!$B$3:$B$100,0)),,COLUMNS($A$1:A5)+7+(ROWS($A$1:A5)-1)*3) -> A7 | G9: =OFFSET(INDEX(All!$C$3:$C$100,MATCH($C$3,All!$B$3:$B$100,0)),,COLUMNS($A$1:B5)+7+(ROWS($A$1:B5)-1)*3) -> A8 | H9: =IF(OFFSET(INDEX(All!$C$3:$C$100,MATCH($C$3,All!$B$3:$B$100,0)),,COLUMNS($A$1:C5)+7+(ROWS($A$1:C5)-1)*3)=0,"",OFFSET(INDEX(All!$C$3:$C$100,MATCH($C$3,All!$B$3:$B$100,0)),,COLUMNS($A$1:C5)+7+(ROWS($A$1:C5)-1)*3)) -> A9
B10: خصم إلتزام السداد | C10: =OFFSET(INDEX(All!$C$3:$C$100,MATCH($C$3,All!$B$3:$B$100,0)),,ROWS($A$1:A4)) -> 30000 | E10: 6 | F10: =OFFSET(INDEX(All!$C$3:$C$100,MATCH($C$3,All!$B$3:$B$100,0)),,COLUMNS($A$1:A6)+7+(ROWS($A$1:A6)-1)*3) -> A10 | G10: =OFFSET(INDEX(All!$C$3:$C$100,MATCH($C$3,All!$B$3:$B$100,0)),,COLUMNS($A$1:B6)+7+(ROWS($A$1:B6)-1)*3) -> A11 | H10: =IF(OFFSET(INDEX(All!$C$3:$C$100,MATCH($C$3,All!$B$3:$B$100,0)),,COLUMNS($A$1:C6)+7+(ROWS($A$1:C6)-1)*3)=0,"",OFFSET(INDEX(All!$C$3:$C$100,MATCH($C$3,All!$B$3:$B$100,0)),,COLUMNS($A$1:C6)+7+(ROWS($A$1:C6)-1)*3)) -> A12
B11: المديونية في حالة إلتزام السداد | C11: =OFFSET(INDEX(All!$C$3:$C$100,MATCH($C$3,All!$B$3:$B$100,0)),,ROWS($A$1:A5)) -> 100000 | E11: 7 | F11: =OFFSET(INDEX(All!$C$3:$C$100,MATCH($C$3,All!$B$3:$B$100,0)),,COLUMNS($A$1:A7)+7+(ROWS($A$1:A7)-1)*3) -> A13 | G11: =OFFSET(INDEX(All!$C$3:$C$100,MATCH($C$3,All!$B$3:$B$100,0)),,COLUMNS($A$1:B7)+7+(ROWS($A$1:B7)-1)*3) -> A14 | H11: =IF(OFFSET(INDEX(All!$C$3:$C$100,MATCH($C$3,All!$B$3:$B$100,0)),,COLUMNS($A$1:C7)+7+(ROWS($A$1:C7)-1)*3)=0,"",OFFSET(INDEX(All!$C$3:$C$100,MATCH($C$3,All!$B$3:$B$100,0)),,COLUMNS($A$1:C7)+7+(ROWS($A$1:C7)-1)*3)) -> A15
B12: عدد الاقسام | C12: =OFFSET(INDEX(All!$C$3:$C$100,MATCH($C$3,All!$B$3:$B$100,0)),,ROWS($A$1:A6)) -> 10 | E12: 8 | F12: =OFFSET(INDEX(All!$C$3:$C$100,MATCH($C$3,All!$B$3:$B$100,0)),,COLUMNS($A$1:A8)+7+(ROWS($A$1:A8)-1)*3) -> A16 | G12: =OFFSET(INDEX(All!$C$3:$C$100,MATCH($C$3,All!$B$3:$B$100,0)),,COLUMNS($A$1:B8)+7+(ROWS($A$1:B8)-1)*3) -> A17 | H12: =IF(OFFSET(INDEX(All!$C$3:$C$100,MATCH($C$3,All!$B$3:$B$100,0)),,COLUMNS($A$1:C8)+7+(ROWS($A$1:C8)-1)*3)=0,"",OFFSET(INDEX(All!$C$3:$C$100,MATCH($C$3,All!$B$3:$B$100,0)),,COLUMNS($A$1:C8)+7+(ROWS($A$1:C8)-1)*3)) -> A18
B13: بداية السداد / تاريخ السداد | C13: =OFFSET(INDEX(All!$C$3:$C$100,MATCH($C$3,All!$B$3:$B$100,0)),,ROWS($A$1:A7)) -> 43976 | E13: 9 | F13: =OFFSET(INDEX(All!$C$3:$C$100,MATCH($C$3,All!$B$3:$B$100,0)),,COLUMNS($A$1:A9)+7+(ROWS($A$1:A9)-1)*3) -> A19 | G13: =OFFSET(INDEX(All!$C$3:$C$100,MATCH($C$3,All!$B$3:$B$100,0)),,COLUMNS($A$1:B9)+7+(ROWS($A$1:B9)-1)*3) -> A20 | H13: =IF(OFFSET(INDEX(All!$C$3:$C$100,MATCH($C$3,All!$B$3:$B$100,0)),,COLUMNS($A$1:C9)+7+(ROWS($A$1:C9)-1)*3)=0,"",OFFSET(INDEX(All!$C$3:$C$100,MATCH($C$3,All!$B$3:$B$100,0)),,COLUMNS($A$1:C9)+7+(ROWS($A$1:C9)-1)*3)) -> A21
E14: 10 | F14: =OFFSET(INDEX(All!$C$3:$C$100,MATCH($C$3,All!$B$3:$B$100,0)),,COLUMNS($A$1:A10)+7+(ROWS($A$1:A10)-1)*3) -> A22 | G14: =OFFSET(INDEX(All!$C$3:$C$100,MATCH($C$3,All!$B$3:$B$100,0)),,COLUMNS($A$1:B10)+7+(ROWS($A$1:B10)-1)*3) -> A23 | H14: =IF(OFFSET(INDEX(All!$C$3:$C$100,MATCH($C$3,All!$B$3:$B$100,0)),,COLUMNS($A$1:C10)+7+(ROWS($A$1:C10)-1)*3)=0,"",OFFSET(INDEX(All!$C$3:$C$100,MATCH($C$3,All!$B$3:$B$100,0)),,COLUMNS($A$1:C10)+7+(ROWS($A$1:C10)-1)*3)) -> A24
B15: =B11 -> المديونية في حالة إلتزام السداد | C15: =OFFSET(INDEX(All!$C$3:$C$100,MATCH($C$3,All!$B$3:$B$100,0)),,6) -> 10 | E15: 11 | F15: =OFFSET(INDEX(All!$C$3:$C$100,MATCH($C$3,All!$B$3:$B$100,0)),,COLUMNS($A$1:A11)+7+(ROWS($A$1:A11)-1)*3) -> A25 | G15: =OFFSET(INDEX(All!$C$3:$C$100,MATCH($C$3,All!$B$3:$B$100,0)),,COLUMNS($A$1:B11)+7+(ROWS($A$1:B11)-1)*3) -> A26 | H15: =IF(OFFSET(INDEX(All!$C$3:$C$100,MATCH($C$3,All!$B$3:$B$100,0)),,COLUMNS($A$1:C11)+7+(ROWS($A$1:C11)-1)*3)=0,"",OFFSET(INDEX(All!$C$3:$C$100,MATCH($C$3,All!$B$3:$B$100,0)),,COLUMNS($A$1:C11)+7+(ROWS($A$1:C11)-1)*3)) -> A27
E16: 12 | F16: =OFFSET(INDEX(All!$C$3:$C$100,MATCH($C$3,All!$B$3:$B$100,0)),,COLUMNS($A$1:A12)+7+(ROWS($A$1:A12)-1)*3) -> A28 | G16: =OFFSET(INDEX(All!$C$3:$C$100,MATCH($C$3,All!$B$3:$B$100,0)),,COLUMNS($A$1:B12)+7+(ROWS($A$1:B12)-1)*3) -> A29 | H16: =IF(OFFSET(INDEX(All!$C$3:$C$100,MATCH($C$3,All!$B$3:$B$100,0)),,COLUMNS($A$1:C12)+7+(ROWS($A$1:C12)-1)*3)=0,"",OFFSET(INDEX(All!$C$3:$C$100,MATCH($C$3,All!$B$3:$B$100,0)),,COLUMNS($A$1:C12)+7+(ROWS($A$1:C12)-1)*3)) -> A30
E18: المحصل | G18: =OFFSET(INDEX(All!$C$3:$C$100,MATCH($C$3,All!$B$3:$B$100,0)),,47) -> 2035
E19: رصيد باقي المديونية بدون خصم | G19: =OFFSET(INDEX(All!$C$3:$C$100,MATCH($C$3,All!$B$3:$B$100,0)),,48) -> 127965
E20: رصيد باقي المديونية معمد الخصم | G20: =OFFSET(INDEX(All!$C$3:$C$100,MATCH($C$3,All!$B$3:$B$100,0)),,49) -> 97965
B22: الملاحظات
